Cogmind - Beta 16 @@@ ROGUE MODE // 2026.01.23 @ 15:40:54 Player: PE-P51_RE Result: Destroyed by Autobeam Turret with Autobeam Performance ------------- Evolutions (0) 0 Regions Visited (2) 400 Robots Destroyed (20) 100 Value Destroyed (619) 619 Prototype IDs (1) 20 Alien Tech Used (0) 0 Bonus (0) 0 TOTAL SCORE: 1139 Bonus ------- None Cogmind --------- Core Integrity 0/250 Matter 295/300 Energy 36/250 System Corruption 2% Temperature Cool (6) Movement Treading (160) Location -10/Subcaves Parts ------- > --- POWER (1+1) ------ Ion Engine (+) Subdweller Power Source > --- PROPULSION (2) --- Light Treads Spiked Treads > --- UTILITY (2) ------ Scrap Shield > --- WEAPON (2) ------- Powered Cannon > --- INVENTORY (5) ---- Light Cannon Battle Cannon Grenade Launcher Scrap Shield Fragment (48) Scrap Shield Fragment (45) Peak State ------------ > --- POWER ------------ Ion Engine Subdweller Power Source > --- PROPULSION ------- Light Treads Spiked Treads > --- UTILITY ---------- Scrap Shield > --- WEAPON ----------- Powered Cannon > --- INVENTORY -------- Medium Laser Light Assault Rifle Light Cannon Battle Cannon Grenade Launcher [Rating: 24] Favorites ----------- Power Ion Engine Engine Ion Engine Propulsion Aluminum Leg Treads Light Treads Leg Aluminum Leg Utility Scrap Shield Device Sensor Array Storage Medium Storage Unit Protection Scrap Shield Weapon Powered Cannon Energy Gun Medium Laser Energy Cannon Powered Cannon Ballistic Gun Assault Rifle Ballistic Cannon Light Cannon Launcher Grenade Launcher Build | -11 -10 -10 ------- Run | Yrd Mat Sub Slots Evolved . | . . . Power . | . . . Propulsion . | . . . Utility . | . . . Weapon . | . . . Parts Attached 16 | . 3 13 Power 5 | . . 5 Engine 5 | . . 5 Core . | . . . Reactor . | . . . Propulsion 2 | . . 2 Treads 2 | . . 2 Leg . | . . . Wheel . | . . . Hover . | . . . Flight . | . . . Utility 3 | . 1 2 Device 1 | . . 1 Storage 1 | . 1 . Processor . | . . . Hackware . | . . . Protection 1 | . . 1 Artifact . | . . . Weapon 6 | . 2 4 Energy Gun 1 | . 1 . Energy Cannon 1 | . . 1 Ballistic Gun . | . . . Ballistic Cannon 3 | . . 3 Launcher 1 | . 1 . Special Weapon . | . . . Impact Weapon . | . . . Slashing Weapon . | . . . Piercing Weapon . | . . . Special Melee Weapon . | . . . Unidentified Prototypes 1 | . . 1 Parts Lost 3 | . . 3 Power 2 | . . 2 Propulsion 1 | . . 1 Utility . | . . . Weapon . | . . . Highest Loss Streak 1 | . . 1 To Critical Strikes . | . . . Average Backups 5 | . 9 5 Power . | . 1 . Propulsion . | . 3 . Utility . | . . . Weapon 4 | . 3 4 Tool/Special . | . . . Unused Backups 7 | . . 7 Power . | . . . Propulsion 3 | . . 3 Utility 1 | . . 1 Weapon 3 | . . 3 Tool/Special . | . . . Average Slot Usage (%) 76 | . 97 73 Engine 18 | . 14 19 Treads 10 | . . 11 Leg 15 | . 28 13 Device 1 | . . 1 Storage 4 | . 26 1 Protection 9 | . . 10 Energy Gun 1 | . 13 . Energy Cannon 9 | . . 10 Ballistic Gun 1 | . 14 . Ballistic Cannon 2 | . . 3 Peak Build Rating 24 | . 8 24 Average Rating 18 | . 7 20 On Entrance 6 | 6 6 8 Avg Prop Armor Cover (%) 3 | . . 3 Naked Turns . | . . . Heaviest Build 37 | 14 24 37 Greatest Support 40 | 20 20 40 Greatest Overweight (x) 1 | . 1 1 Average Overweight (x) . | . . . Largest Inventory Capacity 10 | . 10 10 Average Capacity 6 | . 9 5 Most Carried 10 | . 10 10 Average Carried 6 | . 9 5 Final Capacity 10 | 8 10 5 Final Carried 10 | 6 10 5 Class Distribution -------------------- 100% | Mutant Dominant Class ---------------- Mutant | -10/Materials Mutant | -10/Subcaves Resources | -11 -10 -10 ----------- Run | Yrd Mat Sub Matter Collected 735 | 200 102 433 Remotely . | . . . Salvage Created 592 | . 160 432 Parts 40 | . 22 18 Haulers Intercepted 1 | . 1 . Recyclers Shooed . | . . . Parts Field Recycled . | . . . Retrieved Matter . | . . . Parts Self-Destructed 21 | . . 21 Prevented . | . . . Parts Restored . | . . . Kills | -11 -10 -10 ------- Run | Yrd Mat Sub Combat Hostiles Destroyed 18 | . 6 12 Guns 3 | . 3 . Cannons 8 | . . 8 AOE 3 | . 3 . Classes Destroyed 5 | . 4 1 Builder 1 | . 1 . Hauler 1 | . 1 . Swarmer 3 | . 3 . Grunt 3 | . 3 . Subdweller 12 | . . 12 Best Kill Streak 6 | . 6 3 Combat Bots Only 4 | . 4 3 Max Kills in Single Turn 2 | . 2 1 Gunslinging . | . . . Exploded 2 | . 2 . Melee . | . . . Uniques/NPCs Destroyed . | . . . Combat | -11 -10 -10 -------- Run | Yrd Mat Sub Hostile Shots Fired 76 | . 18 58 Missed 28 | . 6 22 Hits 48 | . 12 36 Projectile 48 | . 12 36 AOE 2 | . . 2 Damage Taken 1263 | . 175 1088 Core 255 | . 11 244 Absorbed by Shields . | . . . Core Remaining (%) 100 | 100 . . Volleys Fired 249 | . 16 233 Largest 2 | . 2 2 Hottest 70 | . 70 63 Shots Fired 290 | . 28 262 Gun 24 | . 24 . Cannon 262 | . . 262 Launcher 4 | . 4 . Special . | . . . Kinetic 70 | . 12 58 Thermal 216 | . 12 204 Explosive 4 | . 4 . Electromagnetic . | . . . Robot Hit Streak 21 | . 6 21 Robot Miss Streak 6 | . 6 2 Penetration Max . | . . . Secondary Targets . | . . . Shots Hit Robots 74 | . 15 59 Core Hits 27 | . 15 12 Critical Kills 4 | . . 4 Critical Parts Destroyed . | . . . Critical Strikes 5 | . . 5 Meltdown 4 | . . 4 Blast 1 | . . 1 Melee Attacks . | . . . Impact . | . . . Slashing . | . . . Piercing . | . . . Sneak Attacks . | . . . Combat Hostiles . | . . . Follow-up Attacks . | . . . Damage Inflicted 2195 | . 409 1786 Guns 163 | . 163 . Cannons 1786 | . . 1786 Explosions 246 | . 246 . Melee . | . . . Ramming . | . . . Kinetic 755 | . 87 668 Thermal 1194 | . 76 1118 Explosive 246 | . 246 . Electromagnetic . | . . . Impact . | . . . Slashing . | . . . Piercing . | . . . Highest Corruption 2 | . . 2 Average Corruption 2 | . . 2 Corruption Purged . | . . . Corruption Blocked . | . . . Effects 36 | . . 36 Message Errors 11 | . . 11 Matter Fused 9 | . . 9 Heat Flow Errors 5 | . . 5 Energy Discharges 5 | . . 5 Data Loss (minor) 4 | . . 4 Alerts 2 | . . 2 Overload Shots . | . . . Overflow Damage . | . . . Projectiles . | . . . Explosions . | . . . Melee . | . . . Knockbacks 11 | . . 11 Impact . | . . . Kinetic 11 | . . 11 Secondary . | . . . Self-Inflicted Damage 34 | . 34 . Shots 2 | . 2 . Rammed . | . . . Targets Rammed 2 | . 2 . Kicked 2 | . 2 . Crushed . | . . . Highest Temperature 181 | . 66 181 Average Temperature 14 | . 22 13 Received Heat Transfer 213 | . 54 159 Siege Activations . | . . . Martial Activations . | . . . Shielding Activations . | . . . Robots Disrupted . | . . . Combat Hostiles . | . . . Robots Corrupted . | . . . Combat Hostiles . | . . . Parts Fried . | . . . Impact Corruptions . | . . . Robots Melted 4 | . . 4 Combat Hostiles 4 | . . 4 Parts Melted 7 | . . 7 Heat Transferred 222 | . 222 . Parts Sabotaged . | . . . Parts Stolen . | . . . Parts Stripped . | . . . Power Chain Reactions . | . . . Alert | -11 -10 -10 ------- Run | Yrd Mat Sub Maximum Alert Level . | . . . Low Security (%) 100 | . 100 . Level 1 . | . . . Level 2 . | . . . Level 3 . | . . . Level 4 . | . . . Level 5 . | . . . High Security . | . . . Max Security . | . . . Peak Influence 119 | . 119 . Initial . | . . . Average 32 | . 32 . Influence Increases 208 | . 193 15 Destroy 0b10 Robot/C 120 | . 120 . Destroy 0b10 Robot/NC 10 | . 10 . Destroy Leader 22 | . 22 . Successful Hack 13 | . 13 . Destroy Structure 28 | . 28 . Lose Combat Pursuer 15 | . . 15 Influence Decreases 193 | . 193 . Time Decay 193 | . 193 . Squads Dispatched 1 | . 1 . Investigation 1 | . 1 . Extermination . | . . . Reinforcement . | . . . Assault . | . . . Garrison . | . . . Intercept . | . . . Searches Triggered . | . . . Construction Impeded . | . . . Haulers Reinforced . | . . . Active Scanning Responses . | . . . Cargo Convoy Interrupts . | . . . Stealth | -11 -10 -10 --------- Run | Yrd Mat Sub Distress Signals . | . . . Communications Jammed . | . . . Distress Signals . | . . . Times Spotted 20 | . 7 13 Peak Tracking Total 4 | . 4 3 Tactical Retreats 1 | . . 1 Traps | -11 -10 -10 ------- Run | Yrd Mat Sub Traps Triggered 2 | . 2 . Indirectly . | . . . Trap Hack Attempts . | . . . Triggered . | . . . Disarmed . | . . . Reprogrammed . | . . . Reused . | . . . Traps Extracted . | . . . Installed . | . . . Triggered . | . . . Machines | -11 -10 -10 ---------- Run | Yrd Mat Sub Machines Disabled 1 | . . 1 Max in Single Turn 1 | . . 1 Machines Repaired . | . . . Machines Dismantled . | . . . Machines Sabotaged . | . . . Overloaded Fab Kills . | . . . Hacking | -11 -10 -10 --------- Run | Yrd Mat Sub Machines Accessed 2 | . 2 . Terminals 1 | . 1 . Fabricators . | . . . Repair Stations . | . . . Recycling Units 1 | . 1 . Scanalyzers . | . . . Garrison Access . | . . . Total Hacks 5 | . 5 . Successful 4 | . 4 . Failed 1 | . 1 . Catastrophic . | . . . Database Lockouts . | . . . Manual 3 | . 3 . Terminals 4 | . 4 . Fabricators . | . . . Repair Stations . | . . . Recycling Units 1 | . 1 . Scanalyzers . | . . . Garrison Access . | . . . Terminal Hacks 1 | . 1 . Registered Components 1 | . 1 . Fabricator Hacks . | . . . Repair Station Hacks . | . . . Recycling Unit Hacks . | . . . Scanalyzer . | . . . Garrison Access Hacks . | . . . Unauthorized Hacks 3 | . 3 . Terminals 2 | . 2 . Botnet 1 | . 1 . Operators 1 | . 1 . Fabricators . | . . . Repair Stations . | . . . Recycling Units 1 | . 1 . Reject 1 | . 1 . Scanalyzers . | . . . Garrison Access . | . . . Data Cores Recovered . | . . . Used . | . . . Hacking Detections 1 | . 1 . Full Trace Events . | . . . Feedback Events . | . . . Feedback Blocked . | . . . Robot Schematics Acquired . | . . . Robots Built . | . . . Authchips . | . . . Time . | . . . Total Robot Build Rating . | . . . Part Schematics Acquired . | . . . Parts Built . | . . . Authchips . | . . . Time . | . . . Total Part Build Rating . | . . . Part Studies Acquired . | . . . Parts Repaired . | . . . Time . | . . . Parts Recycled . | . . . Recycled Matter . | . . . Retrieved Matter . | . . . Retrieved Components . | . . . Parts Scanalyzed . | . . . Part Schematics Acquired . | . . . Parts Damaged . | . . . Bothacking | -11 -10 -10 ------------ Run | Yrd Mat Sub Used RIF Installer . | . . . Robots Hacked . | . . . Non-combat . | . . . Combat . | . . . Robot Hacks Applied . | . . . Relay Couplers Released . | . . . Fabnet Peak Effective % . | . . . Robots Rewired . | . . . Allies Hacked . | . . . Hacks Repelled . | . . . Allies | -11 -10 -10 -------- Run | Yrd Mat Sub Total Allies . | . . . Largest Group . | . . . Highest-Rated Group . | . . . Highest-Rated Ally . | . . . Total Orders . | . . . Ally Attacks . | . . . Total Damage . | . . . Kills . | . . . Allies Corrupted . | . . . Allies Melted . | . . . Intel | -11 -10 -10 ------- Run | Yrd Mat Sub Active Infowar (turns) 412 | . . 412 Sensors 412 | . . 412 Robot Analysis Total . | . . . Derelict Logs Recovered 1 | . . 1 Drone Launches . | . . . Drone Recoveries . | . . . Exploration | -11 -10 -10 ------------- Run | Yrd Mat Sub Turns Passed 4145 | . 551 3594 Spaces Moved 1540 | 1 232 1307 Core . | . . . Treads 1071 | . . 1071 Legs 469 | 1 232 236 Wheels . | . . . Hover . | . . . Flight . | . . . Fastest Speed 120 | 120 120 120 Average Speed 208 | 120 176 213 Slowest Speed 240 | 120 190 240 Overloaded Moves . | . . . Propulsion Burnouts . | . . . Robots Hopped . | . . . Potential Cave-ins 15 | . . 15 Cave-ins Triggered 1 | . . 1 Exploration Rate (%) 37 | 2 45 64 Regions Visited 2 Branch Regions 1 Pre-discovered Areas . | . . . Known Exits Taken . | . . . Unknown Exits Taken 2 | 1 1 . Scrap Searched 5 | . . 5 Spaces Dug 138 | . . 138 Terrain Destroyed 205 | . 30 175 Melee . | . . . Projectile 175 | . . 175 AOE 30 | . 30 . Terrain Rammed . | . . . Walls Destroyed . | . . . Machines Disabled . | . . . Actions | -11 -10 -10 --------- Run | Yrd Mat Sub Total 2231 | . 346 1885 Wait 396 | . 84 312 Move 1537 | . 231 1306 Hop . | . . . Pick Up 11 | . 7 4 Fast Attach 5 | . 1 4 Attach 4 | . . 4 Detach 1 | . . 1 Swap 7 | . 2 5 Drop 11 | . 3 8 Fire 249 | . 16 233 Melee . | . . . Ram . | . . . Kick 2 | . 2 . Crush . | . . . Escape Stasis 1 | . . 1 Rewire . | . . . Trap . | . . . Miscellaneous 7 | . . 7 Route ------- -11/Scrapyard -10/Materials (discovered 2 exits: [*Mat] / [*Sub]) -10/Subcaves (discovered 3 exits: [*Mat x2] / [*Rec]) History --------- Turn | Location | Event 1 | -11/Scrapyard | Discovered new exit (range 0) 1 | -11/Scrapyard | Entered Materials 309 | -10/Materials | Build established: Mutant 443 | -10/Materials | Discovered new exit (range 7) 505 | -10/Materials | Discovered new exit (range 6) 552 | -10/Materials | Entered Subcaves 676 | -10/Subcaves | Learned Materials stockpile data 719 | -10/Subcaves | Shifting Twisted Machinery released Riot Gun 764 | -10/Subcaves | Shifting Twisted Machinery released Battle Cannon 894 | -10/Subcaves | A Subdweller sparked back to life 922 | -10/Subcaves | Core integrity fell below 50% 959 | -10/Subcaves | Found Prototype Energy Cannon 959 | -10/Subcaves | Identified Powered Cannon 960 | -10/Subcaves | Attached Powered Cannon, gained temporary slot: Power 1160 | -10/Subcaves | Ambushed by Subdweller buried in earth 1231 | -10/Subcaves | Ambushed by Subdweller buried in earth 1708 | -10/Subcaves | Ambushed by Subdweller buried in earth 1819 | -10/Subcaves | Ambushed by Subdweller buried in earth 1839 | -10/Subcaves | Ambushed by Subdweller buried in earth 1882 | -10/Subcaves | Crushed by falling debris 1883 | -10/Subcaves | Core integrity fell below 20% 3296 | -10/Subcaves | Discovered new exit (range 5) 3519 | -10/Subcaves | Shifting Twisted Machinery released Spk. Treads 3535 | -10/Subcaves | Shifting Twisted Machinery released Sub. Power Source 4052 | -10/Subcaves | Discovered new exit (range 8) 4144 | -10/Subcaves | Discovered new exit (range 12) 4146 | -10/Subcaves | Destroyed by Autobeam Turret with Autobeam Last Messages --------------- 03711_ Searching scrap... 03711_ Found Mak. Light Armor Plating. 03711_ Found Sub. Monowheel. 03711_ Found 33 Matter. 03713_ Searching scrap... 03713_ Found Battle Cannon. 03713_ Found 52 Matter. 03740_ Subatomizers dissect the Sub. Monowheel. 03748_ Sub. Power Source shoots sparks and powers down. 03873_ NR VPTE&KH:E=VCUKHRWNO D2OV:OW 03917_ System corrupted: Component data lost. 03949_ System corrupted: Heat flow error (+221). 04004_ 1DFH:0:7|0PIEGGGTAJZTQKH6NVBPKIQSI9KT2 04019_ System corrupted: IFF burst signal emitted. 04052_ EXIT=FOUND 04106_